bitfinex-derivatives/quotes_ETHF0:USTF0_20250602
["timestamp","ask_amount","ask_price","bid_price","bid_amount"]
[1748875465919,0.00593284,2528.2,2527.8,1.97711]
[1748875466134,0.00593284,2528.2,2528.1,0.79077]
[1748875466925,0.00593284,2528.2,2528.1,3.22047]
[1748875467376,0.00593284,2528.2,2528.1,1.90577]
[1748875467524,0.00593284,2528.2,2528.1,0.79077]
[1748875467727,19.71293284,2528.2,2528.1,0.79077]
[1748875469035,0.00593284,2528.2,2528.1,0.79077]
[1748875473137,0.79062,2528.6,2528.5,0.79064]
[1748875473138,3.2078,2528.6,2528.5,0.79064]
[1748875473438,3.2078,2528.9,2528.8,0.79055]
[1748875474127,3.2078,2528.9,2528.8,2.12485]
[1748875474742,3.2078,2528.9,2528.8,0.79055]
[1748875474934,3.99833,2528.9,2528.8,0.79055]
[1748875475151,3.2078,2528.9,2528.6,1.09123284]
[1748875475528,0.79056,2528.8,2528.7,0.79055]
[1748875475729,1.2615,2528.8,2528.6,0.00593284]
[1748875476034,1.2615,2528.8,2528.7,0.79058]
[1748875476240,2.05205,2528.8,2528.7,0.79058]
[1748875476453,1.2615,2528.8,2528.7,0.79058]
[1748875476638,3.2078,2528.9,2528.8,0.79055]
[1748875476966,8.2078,2528.9,2527.7,2.80047057]
[1748875477177,0.79108,2527.1,2527.0,0.95820808]
[1748875477385,27.7468,2527.1,2526.4,0.95820808]
[1748875477707,3.2078,2526.6,2526.5,2.14147]
[1748875477782,3.2078,2526.6,2526.5,4.94194057]
[1748875478547,3.2078,2526.6,2526.5,6.12236888]
[1748875478893,2.16870698,2526.7,2526.5,6.12236888]
[1748875478894,20.2896,2526.7,2526.6,0.79123]
[1748875479062,20.2896,2526.7,2526.6,3.59170057]
[1748875479143,20.2896,2526.7,2526.6,4.77212888]
[1748875479344,0.5936,2526.7,2526.6,4.77212888]
[1748875479539,0.5936,2526.7,2526.6,5.87062888]
[1748875479743,0.5936,2526.7,2526.6,10.87062888]
[1748875480241,0.5936,2526.7,2526.6,5.87062888]
[1748875480634,3.8014,2526.7,2526.6,5.87062888]
[1748875481603,3.8014,2526.7,2525.4,3.2078]
[1748875481956,3.8014,2526.7,2523.3,3.956]
[1748875481957,3.2078,2524.9,2523.5,0.18282653]
[1748875482195,1.97913,2525.3,2523.6,5.86525186]
[1748875482196,0.00593284,2524.5,2523.6,5.86525186]
[1748875482439,3.2078,2524.3,2523.6,5.786]
[1748875482854,3.2078,2524.3,2524.2,0.79199]
[1748875483163,3.2078,2524.3,2524.2,0.87122302]
[1748875483337,3.2078,2524.3,2524.2,6.65922302]
[1748875483642,3.2078,2524.3,2524.2,5.87122302]
[1748875483858,3.21373284,2524.5,2524.2,10.86723302]
[1748875484047,3.21373284,2524.5,2524.3,6.57993]
[1748875484236,3.21373284,2524.5,2523.9,3.2078]
[1748875484457,3.21373284,2524.5,2524.4,0.79192]
[1748875486244,3.2078,2524.8,2524.4,5.0]
[1748875486503,3.2078,2524.8,2524.7,0.79178]
[1748875487169,1.0149,2525.8,2525.2,0.79163]
[1748875487337,3.2078,2525.2,2525.0,5.79]
[1748875487539,3.2078,2525.2,2525.1,2.04584]
[1748875489043,4.5792,2525.5,2525.1,1.2542]
[1748875489240,4.5792,2525.5,2525.3,0.79159]
[1748875489743,4.5792,2525.5,2525.2,1.2542]
[1748875489744,4.5792,2525.5,2525.4,0.79157]
[1748875490551,3.2078,2525.5,2525.4,0.79157]
[1748875491759,3.21373284,2525.8,2525.7,0.79148]
[1748875491953,0.00593284,2525.8,2525.7,0.79148]
[1748875493011,2.84e-06,2525.8,2525.7,0.79148]
[1748875494373,2.84e-06,2525.8,2525.7,9.79028]
[1748875496444,2.84e-06,2525.8,2525.7,6.58248]
[1748875496652,2.84e-06,2525.8,2525.7,14.79028]
[1748875497463,2.84e-06,2525.8,2525.7,9.78928]
[1748875498448,2.84e-06,2525.8,2525.7,14.78928]
[1748875499144,2.84e-06,2525.8,2525.7,8.99928]
[1748875499348,2.84e-06,2525.8,2525.7,14.78928]
[1748875500883,3.2078,2526.2,2525.8,1.98527936]
[1748875500996,3.2078,2526.2,2526.1,0.79139]
[1748875501294,3.2078,2526.5,2526.4,0.79129]
[1748875501653,0.5936,2526.7,2526.6,0.79123]
[1748875503346,0.5936,2526.7,2526.6,6.58123]
[1748875503552,0.5936,2526.7,2526.6,0.79123]
[1748875503757,0.5936,2526.7,2526.6,6.58123]
[1748875505055,0.5936,2526.7,2526.6,6.33523]
[1748875506776,0.5936,2526.7,2526.6,0.79123]
[1748875506957,1.8504,2526.7,2526.6,0.79123]
[1748875507259,1.8504,2526.7,2526.5,0.79126]
[1748875507455,1.8504,2526.7,2526.4,5.54893284]
[1748875507456,1.2568,2526.7,2526.6,0.79123]
[1748875509359,0.00593284,2526.9,2526.6,0.79123]
[1748875509862,0.00593284,2526.9,2526.8,0.79117]
[1748875510055,0.00593284,2526.9,2526.8,0.9756255]
[1748875512079,2.84e-06,2526.9,2526.8,5.9756255]
[1748875512082,2.84e-06,2526.9,2526.8,6.5186255]
[1748875515570,3.2078,2527.9,2527.4,1.97745]
[1748875515757,3.2078,2527.9,2527.8,0.79085]
[1748875516652,3.99862,2527.9,2527.7,0.79086]
[1748875516857,3.2078,2527.9,2527.8,0.79086]
[1748875517053,3.99862,2527.9,2527.8,0.79086]
[1748875517249,4.5531,2527.9,2527.8,0.79086]
[1748875519366,3.2078,2527.9,2527.8,0.79086]
[1748875523281,0.79094,2527.6,2527.5,5.307]
[1748875523483,0.79094,2527.6,2526.8,8.5100855]
[1748875523484,0.79098,2527.5,2527.2,5.307]
[1748875523760,1.2482,2527.5,2527.4,0.79098]
[1748875523957,4.456,2527.5,2527.4,0.79098]
[1748875524149,5.24697,2527.5,2527.4,0.79098]
[1748875524660,4.456,2527.5,2527.4,0.79098]
[1748875525173,1.55457327,2527.6,2527.5,0.79095]
[1748875525356,1.55457327,2527.6,2527.3,1.9775]
[1748875525357,23.32293206,2527.7,2527.6,0.79092]
[1748875525762,4.77933206,2527.8,2527.7,0.79089]
[1748875525954,3.2078,2527.8,2527.7,0.79089]
[1748875527060,3.2078,2527.8,2527.6,0.7909]
[1748875527267,1.3459,2527.7,2527.6,0.7909]
[1748875527458,2.91743206,2527.7,2527.6,0.7909]
[1748875529052,1.3459,2527.7,2527.6,0.7909]
[1748875530374,1.3459,2527.7,2527.4,1.2445]
[1748875530647,3.99882,2527.5,2527.4,0.79103]
[1748875531129,11.88587234,2527.5,2527.0,1.3016]
[1748875531365,3.2078,2527.1,2527.0,0.79114]
[1748875531569,4.7819528,2527.1,2527.0,0.79114]
[1748875531759,5.5730728,2527.1,2527.0,0.79114]
[1748875531996,0.79115,2527.0,2526.9,0.79117]
[1748875532171,6.1115528,2527.1,2527.0,0.79115]
[1748875532373,4.7819528,2527.1,2527.0,0.79115]
[1748875532867,0.79118,2527.0,2526.9,0.79117]
[1748875533065,3.99894,2527.1,2527.0,0.79115]
[1748875533274,3.2078,2527.1,2527.0,0.79115]
[1748875534721,2.34847234,2527.2,2526.8,3.27961]
[1748875534893,2.34847234,2527.3,2527.2,0.79108]
[1748875535194,3.2078,2527.4,2527.3,0.79105]
[1748875535364,4.7826456,2527.4,2527.3,0.79105]
[1748875535768,3.2078,2527.4,2527.3,0.79105]
[1748875535980,4.78290028,2527.4,2527.3,0.79105]
[1748875536160,3.2078,2527.4,2527.3,0.79105]
[1748875538463,5.55627234,2527.4,2527.3,0.79105]
[1748875542564,3.2078,2527.4,2527.3,0.79105]
[1748875545070,3.2078,2527.4,2527.3,5.85905]
[1748875545770,4.78498143,2527.4,2527.3,5.85905]
[1748875546272,3.2078,2527.4,2527.3,7.17505]
[1748875546580,3.8012,2527.4,2527.3,7.17505]
[1748875546768,5.37845727,2527.4,2527.0,3.15076]
[1748875546970,5.37845727,2527.4,2527.3,0.79105]
[1748875547669,3.8012,2527.4,2527.3,0.79105]
[1748875548492,3.8012,2527.4,2527.3,5.85905]
[1748875548671,3.8012,2527.4,2527.3,0.79105]
[1748875548866,5.37845727,2527.4,2527.3,5.85905]
[1748875549577,5.37845727,2527.4,2527.3,0.79105]
[1748875549981,5.37845727,2527.4,2527.3,2.03495]
[1748875551175,2.17065727,2527.4,2527.3,2.03495]
[1748875551398,0.5934,2527.4,2527.3,2.03495]
[1748875551784,1.57725727,2527.6,2527.5,0.79098]
[1748875552077,3.2078,2528.0,2527.9,0.79085]
[1748875552282,3.2078,2528.0,2527.9,5.85785]
[1748875553115,3.2078,2528.0,2527.8,1.3088]
[1748875553116,3.2078,2528.0,2527.8,2.09968]
[1748875553297,3.99862,2528.0,2527.8,2.09968]
[1748875553573,3.2078,2528.0,2527.9,0.79085]
[1748875553778,3.2078,2528.0,2527.8,1.3088]
[1748875553968,3.99864,2528.0,2527.8,1.3088]
[1748875554178,0.79085,2527.9,2527.8,1.3088]
[1748875554400,0.79089,2527.8,2527.7,0.00593284]
[1748875554656,2.10669,2527.8,2527.7,0.00593284]
[1748875556590,0.79122,2526.9,2526.4,2.7605459]
[1748875556595,3.2078,2526.7,2526.6,1.2614]
[1748875556809,3.2078,2526.7,2526.6,2.05268]
[1748875557201,3.2078,2526.7,2526.6,1.2614]
[1748875557375,3.2078,2526.7,2526.4,0.00593284]
[1748875557816,3.2078,2526.7,2526.6,0.79128]
[1748875558481,3.2078,2526.7,2526.4,1.30303284]
[1748875558682,3.2078,2526.7,2526.6,0.79128]
[1748875559694,0.00593284,2526.8,2526.7,0.79122]
[1748875559986,0.00593284,2526.8,2526.7,8.35742]
[1748875560697,0.00593284,2526.8,2526.7,3.28942]
[1748875560991,3.21373284,2526.8,2526.7,2.4982]
[1748875561173,3.21373284,2526.8,2526.7,1.2971]
[1748875561370,3.21373284,2526.8,2526.7,2.08833]
[1748875561580,3.21373284,2526.8,2526.7,1.2971]
[1748875561793,3.21373284,2526.8,2526.7,2.08833]
[1748875562175,3.21373284,2526.8,2526.7,1.2971]
[1748875562572,3.21373284,2526.8,2526.7,2.08832]
[1748875563087,3.21373284,2526.8,2526.7,1.2971]
[1748875563506,3.21373284,2526.8,2526.4,0.00593284]
[1748875563774,3.2078,2526.5,2526.4,2.14925284]
[1748875564789,3.2078,2526.5,2526.4,1.35793284]
[1748875565078,3.2078,2526.5,2526.4,0.00593284]
[1748875565388,3.99909,2526.5,2526.4,0.00593284]
[1748875565589,5.29269,2526.5,2526.4,0.00593284]
[1748875566587,10.29269,2526.5,2526.4,0.00593284]
[1748875567719,0.79132,2526.4,2526.3,0.00395835]
[1748875568004,2.06662,2526.4,2526.3,0.00395835]
[1748875568187,1.97837,2526.3,2525.8,0.00656936]
[1748875568407,3.2078,2525.9,2525.8,0.00656936]
[1748875568645,3.99927,2525.9,2525.8,0.00656936]
[1748875568784,3.2078,2525.9,2525.8,0.00656936]
[1748875569378,3.99927,2525.9,2525.8,0.00656936]
[1748875569585,3.2078,2525.9,2525.8,0.00656936]
[1748875569979,3.99927,2525.9,2525.8,0.00656936]
[1748875570181,4.5323,2525.9,2525.8,0.00656936]
[1748875570391,5.32377,2525.9,2525.8,0.00656936]
[1748875570916,10.32377,2525.9,2525.8,0.00656936]
[1748875571450,0.79154,2525.7,2525.6,0.00593284]
[1748875571618,5.86054,2525.7,2525.6,0.00593284]
[1748875571820,1.97925,2525.2,2524.6,1.3153]
[1748875572030,3.2078,2524.7,2524.5,2.262]
[1748875572254,0.79188,2524.6,2524.5,2.262]
[1748875572731,1.3245,2524.6,2524.5,2.262]
[1748875572905,1.3245,2524.6,2523.4,1.98059]
[1748875572906,1.97987,2524.4,2523.4,7.3439]
[1748875573086,3.2078,2523.9,2523.6,0.79217]
[1748875573300,3.2078,2523.9,2523.7,2.10606]
[1748875573489,3.2078,2523.9,2523.8,1.3139]
[1748875573983,3.2078,2524.2,2524.1,0.79203]
[1748875574217,3.2078,2524.5,2524.4,0.79194]
[1748875574484,3.2078,2524.5,2524.2,1.3139]
[1748875574913,3.2078,2524.5,2524.2,2.1059]
[1748875575217,0.79195,2524.4,2524.2,1.3139]
[1748875575489,3.2078,2524.5,2524.3,1.3139]
[1748875575490,3.99972,2524.5,2524.3,1.3139]
[1748875575688,3.2078,2524.5,2524.3,1.3139]
[1748875575910,3.2078,2524.5,2524.4,0.79194]
[1748875576203,3.2078,2524.5,2524.4,3.12404]
[1748875576394,0.00593284,2524.8,2524.7,0.79185]
[1748875577121,3.2078,2525.7,2525.5,0.79158]
[1748875577402,3.2078,2525.7,2525.6,0.79157]
[1748875578197,3.2078,2525.7,2525.4,0.00593284]
[1748875578515,0.7916,2525.5,2525.4,0.00593284]
[1748875579085,2.0708,2525.5,2525.4,0.00593284]
[1748875579688,7.0708,2525.5,2525.4,0.00593284]
[1748875580386,1.97912,2525.4,2524.7,2.08554]
[1748875580594,3.2078,2524.9,2524.7,2.08554]
[1748875580789,3.2078,2524.9,2524.8,1.2937]
[1748875581087,3.2078,2524.9,2524.8,2.08552]
[1748875581302,3.2078,2524.9,2524.8,1.2937]
[1748875581682,3.99961,2524.9,2524.3,2.3739]
[1748875581953,3.2078,2524.9,2524.4,1.3194]
[1748875582170,3.2078,2524.5,2524.4,1.3194]
[1748875582307,3.2078,2524.5,2524.4,2.11134]
[1748875582686,3.2078,2524.5,2524.4,1.3194]
[1748875583091,3.2078,2524.5,2524.4,2.11134]
[1748875583419,3.2078,2524.5,2523.8,3.2078]
[1748875583420,0.79235,2523.1,2522.8,2.33186827]
[1748875583623,3.2078,2523.1,2522.6,2.33186827]
[1748875583817,3.2078,2522.7,2522.4,0.79256]
[1748875583918,3.2078,2522.7,2522.6,0.07928327]
[1748875584505,3.2078,2522.7,2522.6,5.07928327]
[1748875584686,3.2078,2522.7,2522.6,0.07928327]
[1748875584887,3.2078,2522.7,2522.6,5.41528327]
[1748875585989,3.8023,2523.0,2522.9,0.79241]
[1748875586186,3.8023,2523.0,2522.9,6.12841]
[1748875586472,3.8023,2523.0,2522.7,5.336]
[1748875586635,3.8023,2523.0,2522.6,0.07928327]
[1748875586812,3.2078,2522.7,2522.6,6.20779327]
[1748875587045,3.8023,2523.0,2522.9,0.79241]
[1748875587233,3.8023,2523.0,2522.9,6.12841]
[1748875587521,3.8023,2523.0,2522.9,5.79241]
[1748875587810,3.8023,2523.0,2522.9,11.12841]
[1748875588002,3.8023,2523.0,2522.9,5.79241]
[1748875588208,3.8023,2523.0,2522.9,11.12941]
[1748875588907,3.8023,2523.0,2522.9,6.12941]
[1748875589215,3.8023,2523.0,2522.9,11.12941]
[1748875590404,3.8023,2523.0,2522.9,6.12941]
[1748875590593,3.8023,2523.0,2522.9,5.337]
[1748875590794,3.8023,2523.0,2522.9,6.12941]
[1748875591219,3.8023,2523.0,2522.9,11.12941]
[1748875591924,3.21374519,2523.3,2523.2,0.79232]
[1748875592304,3.21374519,2523.3,2523.2,5.79232]
[1748875593622,3.21374519,2523.3,2523.0,1.3533]
[1748875593803,3.21374519,2523.3,2523.2,0.79232]
[1748875594109,3.21374519,2523.3,2523.2,6.12932]
[1748875594405,3.21374519,2523.3,2523.1,0.79232]
[1748875594659,3.21374519,2523.3,2523.2,7.47962]
[1748875594804,3.21374519,2523.3,2523.2,6.6873]
[1748875595108,3.21374519,2523.3,2523.2,7.47962]
[1748875595303,3.21374519,2523.3,2523.2,6.6873]
[1748875595600,3.21374519,2523.3,2523.2,7.47962]
[1748875596101,3.21374519,2523.3,2523.2,6.6873]
[1748875596682,3.21374519,2523.3,2521.6,8.5448]
[1748875596683,8.21374519,2523.3,2521.6,8.5448]
[1748875596840,3.2078,2522.4,2522.1,1.1361]
[1748875597125,3.2078,2522.4,2522.2,6.13061]
[1748875597333,3.2078,2522.4,2522.3,0.7926]
[1748875598101,3.2078,2522.4,2522.2,0.79262]
[1748875598303,3.2078,2522.4,2522.1,1.1361]
[1748875598632,3.2078,2522.4,2522.3,0.7926]
[1748875599001,3.2078,2522.4,2522.3,5.7926]
[1748875599220,3.2078,2522.4,2521.6,0.15244816]
[1748875599478,3.2078,2521.7,2521.6,0.79282]
[1748875600003,0.00594519,2521.9,2521.8,0.79276]
[1748875600215,0.00594519,2521.9,2521.8,6.13076]
[1748875600410,0.00594519,2521.9,2521.8,11.13076]
[1748875602010,3.2078,2522.3,2522.2,0.79263]
[1748875602408,3.2078,2522.3,2522.2,6.13063]
[1748875603116,3.2078,2522.3,2522.2,0.79263]
[1748875603417,3.2078,2522.3,2522.2,6.13163]
[1748875606016,0.00594519,2522.5,2522.4,0.79257]
[1748875606422,0.00594519,2522.5,2522.4,5.79257]
[1748875608020,0.00594519,2522.5,2522.4,11.13157]
[1748875609624,3.2078,2523.0,2522.9,0.79241]
[1748875609817,3.2078,2523.0,2522.9,6.13141]
[1748875611544,1.30511519,2523.2,2523.1,0.79235]
[1748875611545,0.02251519,2523.2,2523.1,0.79235]
[1748875611924,0.02251519,2523.2,2523.1,6.13135]
[1748875612152,1.32741519,2523.2,2523.1,6.13135]
[1748875613170,0.02251519,2523.2,2523.1,9.33915]
[1748875614415,0.02251519,2523.2,2523.1,6.27960972]
[1748875614618,0.02251519,2523.2,2523.1,6.00835]
[1748875615006,0.02251519,2523.2,2523.1,5.216]
[1748875615199,1.27211519,2523.2,2523.1,5.216]
[1748875616215,1.27211519,2523.2,2523.1,5.215]
[1748875617536,2.06443519,2523.2,2523.1,5.215]
[1748875618202,1.98089,2523.1,2522.5,3.2078]
[1748875618356,4.00027,2522.8,2522.3,0.79259]
[1748875618624,3.2078,2522.5,2522.1,2.91961293]
[1748875618822,1.3272,2522.4,2522.2,5.215]
[1748875619450,1.3272,2522.4,2522.3,5.215]
[1748875619720,2.11978,2522.4,2522.3,5.215]
[1748875619928,1.3272,2522.4,2522.3,5.215]
[1748875620114,2.11977,2522.4,2522.3,5.215]
[1748875620317,1.3272,2522.4,2522.3,6.0076]
[1748875620523,1.3272,2522.4,2522.3,5.215]
[1748875620824,2.11977,2522.4,2522.3,5.215]
[1748875620954,1.3272,2522.4,2522.0,2.53404519]
[1748875621144,0.79266,2522.1,2522.0,0.00594519]
[1748875621474,0.79266,2522.1,2522.0,5.22194519]
[1748875621694,2.12176,2522.1,2522.0,5.22194519]
[1748875621880,2.12176,2522.1,2522.0,0.00594519]
[1748875622264,7.12176,2522.1,2522.0,0.00594519]
[1748875622531,0.79278,2521.8,2521.7,5.216]
[1748875622654,0.79283,2521.7,2521.6,5.216]
[1748875622821,2.12193,2521.7,2521.6,5.216]
[1748875623489,6.57,2521.6,2519.9,1.93003237]
[1748875623671,3.2078,2520.0,2519.1,7.80168283]
[1748875623883,0.00594519,2519.8,2519.3,0.00594519]
[1748875624035,0.00594519,2519.8,2519.7,4.00124]
[1748875624248,3.2078,2520.2,2520.0,0.79334]
[1748875624447,3.2078,2520.5,2520.1,0.57110824]
[1748875624662,3.2078,2520.5,2520.2,2.5501]
[1748875624864,3.2078,2520.5,2520.4,0.57110824]
[1748875625629,0.79322,2520.4,2520.3,1.3057]
[1748875625837,0.79322,2520.4,2519.9,1.2704]
[1748875625838,3.2078,2520.5,2519.9,1.2704]
[1748875626024,3.2078,2520.2,2520.0,8.1077]
[1748875626651,3.2078,2520.3,2520.1,0.57110824]
[1748875626866,3.2078,2520.3,2520.2,2.09898]
[1748875627084,3.21374519,2520.7,2520.2,1.87680824]
[1748875627222,3.2078,2521.1,2520.6,0.57110824]
[1748875627430,3.2078,2521.4,2521.3,0.57110824]
[1748875630036,3.2078,2521.4,2521.3,1.36403824]
[1748875630230,0.00594519,2521.6,2521.5,0.79287]
[1748875630424,0.00594519,2521.6,2521.5,1.36397824]
[1748875630826,0.00594519,2521.6,2521.5,2.64307824]
[1748875631134,0.00594519,2521.6,2521.5,7.64307824]
[1748875631823,0.00594519,2521.6,2521.5,14.44707824]
[1748875632526,0.00594519,2521.6,2521.5,2.64307824]
[1748875632732,0.00594519,2521.6,2521.5,14.44707824]
[1748875633142,4.00035,2522.5,2522.1,0.79265]
[1748875633325,3.2078,2522.5,2522.4,0.57110824]
[1748875633823,3.2078,2522.5,2522.4,1.36367824]
[1748875634147,0.00594519,2522.7,2522.6,0.79248]
[1748875634331,3.21374519,2522.7,2522.6,0.79248]
[1748875634550,4.00621519,2522.7,2522.6,0.57110824]
[1748875634735,3.21374519,2522.7,2522.4,0.00594519]
[1748875634932,3.21374519,2522.7,2522.6,0.57110824]
[1748875635250,4.00623519,2522.7,2522.5,0.57110824]
[1748875635430,3.21374519,2522.7,2522.5,1.36362824]
[1748875635829,3.21374519,2522.7,2522.6,1.36361824]
[1748875636527,3.21374519,2522.7,2522.6,0.57110824]
[1748875636744,3.21374519,2522.7,2522.6,1.36361824]
[1748875637161,0.00594519,2522.7,2522.6,1.36361824]
[1748875638147,0.00594519,2522.7,2522.6,0.57110824]
[1748875638643,3.21374519,2522.7,2522.6,0.57110824]
[1748875638935,3.21374519,2522.7,2522.6,1.36361824]
[1748875640756,3.21374519,2522.7,2522.6,7.37310824]
[1748875641048,0.79254,2522.5,2522.4,0.00594519]
[1748875641849,3.21374519,2522.7,2522.4,0.00594519]
[1748875642150,3.21374519,2522.7,2522.4,0.57705343]
[1748875642341,3.21374519,2522.7,2522.5,0.79254]
[1748875642639,4.00624519,2522.7,2522.4,0.57705343]
[1748875642937,0.79255,2522.5,2522.4,0.00594519]
[1748875643529,3.21374519,2522.7,2522.4,0.00594519]
[1748875643792,3.21374519,2522.7,2522.6,1.36362824]
[1748875644450,3.21374519,2522.7,2522.6,0.57110824]
[1748875644730,3.21374519,2522.7,2522.6,1.36362824]
[1748875644929,3.21374519,2522.7,2522.6,0.57110824]
[1748875645164,3.21374519,2522.7,2522.6,1.36362824]
[1748875645348,3.21374519,2522.7,2522.6,0.57110824]
[1748875646136,3.21374519,2522.7,2522.4,0.00594519]
[1748875646336,3.21374519,2522.7,2522.6,1.36362824]
[1748875646739,3.21374519,2522.7,2522.6,0.57110824]
[1748875647036,3.21374519,2522.7,2522.6,1.36362824]
[1748875648835,3.21374519,2522.7,2522.4,0.79850519]
[1748875649051,3.21374519,2522.7,2522.4,1.36962343]
[1748875649237,0.79253,2522.6,2522.4,0.00594519]
[1748875649542,0.79255,2522.6,2522.4,0.00594519]
[1748875649763,0.79255,2522.5,2522.4,0.00594519]
[1748875649937,1.28195,2522.6,2522.4,0.00594519]
[1748875650137,4.00624519,2522.7,2522.5,0.79254]
[1748875650547,3.21374519,2522.7,2522.4,0.00594519]
[1748875651056,0.79255,2522.5,2522.4,0.00594519]
[1748875651346,0.79254,2522.6,2522.4,0.00594519]
[1748875651549,0.79255,2522.5,2522.4,0.00594519]
[1748875651847,3.70314519,2522.7,2522.4,0.00594519]
[1748875652145,0.79255,2522.5,2522.4,0.00594519]
[1748875652343,3.70314519,2522.7,2522.4,0.00594519]
[1748875652542,0.79255,2522.5,2522.4,0.00594519]
[1748875653135,0.79254,2522.6,2522.4,0.00594519]
[1748875653337,0.79255,2522.5,2522.4,0.00594519]
[1748875653849,5.79255,2522.5,2522.4,0.00594519]
[1748875654034,6.28155,2522.5,2522.4,0.00594519]
[1748875654439,7.85904229,2522.5,2522.4,0.00594519]
[1748875654748,6.28155,2522.5,2522.4,0.00594519]
[1748875655154,9.04790229,2522.5,2521.9,1.3835]
[1748875655363,3.2078,2522.0,2521.9,2.74734824]
[1748875655539,3.2078,2522.0,2521.9,2.17624]
[1748875655735,3.2078,2522.0,2521.9,2.74734824]
[1748875656037,3.20113769,2522.0,2521.9,1.3835]
[1748875656254,3.20113769,2522.0,2521.9,2.17624]
[1748875656448,3.20113769,2522.0,2521.9,1.3835]
[1748875656941,3.20113769,2522.0,2521.9,2.17624]
[1748875657758,3.20113769,2522.0,2521.9,2.74734824]
[1748875660047,3.20113769,2522.0,2521.9,1.36384824]
[1748875662653,3.20113769,2522.0,2521.9,0.57110824]
[1748875662654,3.99384769,2522.0,2521.9,0.57110824]
[1748875662870,0.79274,2521.9,2521.8,1.3254]
[1748875663093,0.79295,2521.3,2521.1,2.36419639]
[1748875663279,26.59629229,2521.5,2521.2,2.14686]
[1748875663450,0.79291,2521.4,2521.2,2.14686]
[1748875663755,1.57749229,2521.4,2521.2,2.14686]
[1748875663952,1.57749229,2521.4,2521.3,0.79293]
[1748875664156,2.37039229,2521.4,2521.2,2.14685]
[1748875664352,0.7929,2521.4,2521.2,1.3539]
[1748875664606,0.7929,2521.4,2521.2,2.14685]
[1748875664849,1.57866295,2521.4,2521.2,1.3539]
[1748875665052,2.37158295,2521.4,2521.2,2.14685]
[1748875665268,1.57866295,2521.4,2521.3,0.79293]
[1748875665454,4.78646295,2521.5,2521.4,0.7929]
[1748875665660,26.53046295,2521.5,2521.4,0.7929]
[1748875665855,26.51846295,2521.5,2521.4,2.177]
[1748875666499,24.9398,2521.5,2521.4,2.177]
[1748875667458,1.57703065,2522.0,2521.9,0.57110824]
[1748875667615,1.57703065,2522.0,2521.9,1.36384824]
[1748875667863,3.2078,2522.5,2522.4,0.79259]
[1748875668458,3.2078,2522.5,2522.3,2.11078]
[1748875668459,25.74935,2522.5,2522.3,2.11078]
[1748875668649,0.79259,2522.4,2521.8,1.98191]
[1748875668882,24.9568,2522.5,2522.2,0.57110824]
[1748875669163,21.729,2522.4,2522.3,2.11078]
[1748875669562,21.722,2522.4,2522.3,2.1108]
[1748875669863,21.722,2522.4,2522.3,1.3182]
[1748875670088,3.2078,2522.5,2522.4,0.79258]
[1748875670259,25.69837,2522.5,2522.3,2.11079]
[1748875670459,24.9058,2522.5,2522.4,0.79258]
[1748875670658,24.9058,2522.5,2522.4,2.11178]
[1748875671463,25.69835,2522.5,2522.4,1.3192]
[1748875671858,25.69835,2522.5,2522.4,2.11178]
[1748875672477,25.69835,2522.5,2522.4,1.3192]
[1748875673786,25.69835,2522.5,2522.4,2.11178]
[1748875673963,25.69835,2522.5,2522.4,1.3192]
[1748875674166,25.69835,2522.5,2522.4,2.11178]
[1748875674662,25.69835,2522.5,2522.4,1.3192]
[1748875674974,25.56535,2522.5,2522.4,2.11178]
[1748875675168,24.7728,2522.5,2522.4,2.11178]
[1748875675476,25.56535,2522.5,2522.4,2.11178]
[1748875676363,3.2078,2522.5,2522.4,2.11178]
[1748875676594,21.52394519,2522.7,2522.6,0.79252]
[1748875677286,22.31643519,2522.7,2522.6,0.79252]
[1748875677973,21.52394519,2522.7,2522.6,0.79252]
[1748875678869,21.45794519,2522.7,2522.6,0.79252]
[1748875679367,0.00594519,2522.7,2522.6,1.36362824]
[1748875679646,3.94563855,2523.4,2523.3,0.7923]
[1748875679647,3.15651084,2523.4,2523.3,0.7923]
[1748875679722,3.15651084,2523.4,2523.3,1.36340824]
[1748875679944,3.2078,2523.7,2523.6,0.7922]
[1748875680169,3.2078,2523.7,2523.6,1.36330824]
[1748875680581,0.00594519,2523.9,2523.6,0.57110824]
[1748875680776,3.2078,2523.7,2523.3,8.587]
[1748875681074,3.2078,2523.7,2523.6,0.7922]
[1748875681276,3.2078,2523.7,2523.5,1.36332824]
[1748875681486,3.2078,2523.7,2523.5,0.57110824]
[1748875681880,3.2078,2523.7,2523.6,0.7922]
[1748875682078,3.2078,2523.7,2523.5,0.57110824]
[1748875682274,3.2078,2523.7,2523.6,0.7922]
[1748875682681,3.2078,2523.7,2523.5,0.79222]
[1748875682869,3.2078,2523.7,2523.6,0.7922]
[1748875683077,0.00594519,2523.9,2523.8,0.79214]
[1748875683281,0.00594519,2523.9,2523.8,1.36324824]
[1748875683907,1e-05,2524.0,2523.9,0.79211]
[1748875684098,1e-05,2524.0,2523.9,2.72431824]
[1748875684280,1e-05,2524.0,2523.9,7.72431824]
[1748875684685,1e-05,2524.0,2523.9,7.90920632]
[1748875685075,1e-05,2524.0,2523.9,13.95020632]
[1748875685303,3.2078,2524.6,2524.5,0.79192]
[1748875685559,3.2078,2524.9,2524.5,0.57110824]
[1748875685695,3.2078,2524.9,2524.7,0.57110824]
[1748875685878,3.2078,2524.9,2524.5,1.3638]
[1748875686189,3.2078,2524.6,2524.3,6.83297]
[1748875686384,3.2078,2524.6,2524.5,0.57110824]
[1748875686599,3.2078,2524.6,2524.0,1.3638]
[1748875686828,3.2078,2524.2,2523.7,6.04694519]
[1748875687044,3.2078,2523.8,2523.7,0.00594519]
[1748875687503,3.2078,2523.8,2523.7,1.36922343]
[1748875687687,3.2078,2524.1,2524.0,0.79206]
[1748875688066,24.4908,2524.4,2524.1,0.79204]
[1748875688270,24.4908,2524.4,2524.1,1.36312824]
[1748875688476,3.2078,2524.4,2524.2,0.57110824]